bitfinex/quotes_SOLUSD_20241123
["timestamp","ask_amount","ask_price","bid_price","bid_amount"]
[1732345796857,2.8782511,258.39,258.27,23.776884]
[1732345797057,4.60520177,258.41,258.28,20.0]
[1732345797353,2.87816074,258.4,258.29,23.776884]
[1732345797656,2.87816074,258.39,258.29,23.776884]
[1732345797857,4.60485555,258.41,258.29,23.776884]
[1732345798054,2.87805541,258.4,258.29,23.776884]
[1732345798233,2.87805541,258.39,258.29,23.776884]
[1732345798436,15.417211,258.42,258.29,23.776884]
[1732345798739,2.87719301,258.41,258.29,23.776884]
[1732345798939,2.87719301,258.4,258.29,23.776884]
[1732345799156,2.87719301,258.39,258.29,23.776884]
[1732345799337,4.60316456,258.41,258.29,23.776884]
[1732345799539,2.87694788,258.4,258.29,23.776884]
[1732345799741,2.87694788,258.39,258.29,23.776884]
[1732345799963,4.60316456,258.41,258.29,23.776884]
[1732345800332,2.87707253,258.4,258.29,23.776884]
[1732345800558,2.87707253,258.39,258.29,23.776884]
[1732345800772,4.60316456,258.41,258.29,23.776884]
[1732345800935,2.87695669,258.4,258.29,23.776884]
[1732345801256,2.87695669,258.39,258.29,23.776884]
[1732345801435,2.87695669,258.41,258.29,23.776884]
[1732345801638,2.87755797,258.4,258.29,23.776884]
[1732345801935,2.87755797,258.39,258.29,23.776884]
[1732345802243,4.60399058,258.41,258.29,23.776884]
[1732345802562,2.87741557,258.4,258.29,23.776884]
[1732345802748,2.87741557,258.39,258.29,23.776884]
[1732345803064,15.417211,258.42,258.29,23.776884]
[1732345803267,7.48179972,258.41,258.29,23.776884]
[1732345805242,2.87761528,258.41,258.3,41.8565]
[1732345805451,15.417211,258.42,258.31,23.776884]
[1732345806040,2.87791353,258.41,258.31,23.776884]
[1732345806349,15.417211,258.42,258.31,23.776884]
[1732345806558,2.87803035,258.41,258.31,23.776884]
[1732345806863,2.87803035,258.4,258.31,23.776884]
[1732345807059,15.417211,258.42,258.31,23.776884]
[1732345807257,2.87818471,258.41,258.31,23.776884]
[1732345807440,2.87818471,258.4,258.31,23.776884]
[1732345807642,15.417211,258.42,258.31,23.776884]
[1732345807866,2.87875531,258.41,258.31,23.776884]
[1732345808053,15.417211,258.42,258.31,23.776884]
[1732345808248,2.878574,258.41,258.31,23.776884]
[1732345808658,15.417211,258.42,258.31,23.776884]
[1732345808856,15.417211,258.42,258.32,20.0]
[1732345809261,15.417211,258.42,258.33,23.776884]
[1732345809469,15.417211,258.42,258.34,20.0]
[1732345812338,15.417211,258.42,258.35,23.776884]
[1732345816363,2.87698328,258.41,258.3,21.8565]
[1732345816564,2.87698328,258.4,258.3,21.8565]
[1732345816746,15.417211,258.42,258.3,21.8565]
[1732345816946,2.87696882,258.41,258.3,21.8565]
[1732345817148,2.87696882,258.4,258.3,21.8565]
[1732345817360,15.417211,258.42,258.3,21.8565]
[1732345817548,2.87714104,258.41,258.3,21.8565]
[1732345817749,2.87714104,258.4,258.3,21.8565]
[1732345817950,15.417211,258.42,258.3,21.8565]
[1732345818141,2.87718316,258.41,258.3,21.8565]
[1732345818345,15.417211,258.42,258.31,23.776884]
[1732345818567,2.87738257,258.41,258.31,23.776884]
[1732345818871,2.87737331,258.4,258.31,23.776884]
[1732345819046,15.417211,258.42,258.31,23.776884]
[1732345819246,2.8774509,258.41,258.31,23.776884]
[1732345819458,2.8774509,258.4,258.31,23.776884]
[1732345819653,15.417211,258.42,258.31,23.776884]
[1732345819866,2.87752442,258.41,258.31,23.776884]
[1732345820073,2.87752442,258.4,258.31,23.776884]
[1732345820273,15.417211,258.42,258.3,15.4821]
[1732345820566,7.48390983,258.41,258.3,15.4821]
[1732345820769,2.87850667,258.4,258.3,15.4821]
[1732345820946,2.87850667,258.39,258.3,15.4821]
[1732345821147,2.87850667,258.38,258.3,15.4821]
[1732345821359,2.87850667,258.37,258.3,15.4821]
[1732345821553,2.87850667,258.36,258.3,15.4821]
[1732345821744,2.87850667,258.35,258.3,15.4821]
[1732345822147,7.46273759,258.41,258.3,15.4821]
[1732345822355,2.87984607,258.4,258.3,15.4821]
[1732345822567,2.87984607,258.39,258.3,15.4821]
[1732345822785,2.87984607,258.38,258.3,15.4821]
[1732345822952,2.87984607,258.37,258.3,15.4821]
[1732345823152,2.87984607,258.36,258.3,15.4821]
[1732345823353,2.87984607,258.35,258.3,15.4821]
[1732345823565,7.46273759,258.41,258.3,15.4821]
[1732345823874,2.88001909,258.4,258.3,15.4821]
[1732345824175,2.88001909,258.39,258.3,15.4821]
[1732345824466,2.88001909,258.38,258.3,15.4821]
[1732345824669,2.88001909,258.37,258.3,15.4821]
[1732345824878,7.46273759,258.41,258.3,15.4821]
[1732345825088,2.88004683,258.4,258.3,15.4821]
[1732345825295,2.88015022,258.39,258.3,15.4821]
[1732345825577,2.88015022,258.38,258.3,15.4821]
[1732345825766,2.88015022,258.37,258.3,15.4821]
[1732345825967,24.60824035,258.41,258.3,15.4821]
[1732345826153,7.4887209,258.4,258.3,15.4821]
[1732345828552,7.4887209,258.4,258.24,6.4976]
[1732345828553,2.5,258.37,258.24,15.0191]
[1732345828879,23.776884,258.34,258.19,1.00313722]
[1732345829053,27.49001518,258.33,258.19,1.00313722]
[1732345829247,2.88077507,258.32,258.19,1.00313722]
[1732345829461,2.88077507,258.31,258.19,1.00313722]
[1732345829752,2.88077507,258.3,258.19,1.00313722]
[1732345829957,4.60682468,258.32,258.19,1.00313722]
[1732345830169,2.87924861,258.31,258.19,1.00313722]
[1732345830352,2.87924861,258.3,258.19,1.00313722]
[1732345830663,20.0,258.31,258.19,1.00313722]
[1732345830865,26.65479675,258.3,258.19,1.00313722]
[1732345831186,22.87791275,258.29,258.19,1.00313722]
[1732345831478,2.87791275,258.28,258.19,1.00313722]
[1732345831681,20.0,258.26,258.19,1.00313722]
[1732345834655,2.78846309,258.29,258.19,1.00313722]
[1732345834883,4.59599445,258.33,258.19,1.00313722]
[1732345835059,2.8729778,258.32,258.19,1.00313722]
[1732345835381,2.87247791,258.31,258.19,1.00313722]
[1732345835677,4.59599445,258.36,258.19,1.00313722]
[1732345835882,7.46822074,258.36,258.19,1.00313722]
[1732345836381,20.0,258.35,258.19,1.00313722]
[1732345836579,2.87222629,258.34,258.19,1.00313722]
[1732345836781,2.87222629,258.33,258.19,1.00313722]
[1732345836970,26.64911029,258.32,258.19,1.00313722]
[1732345837166,20.0,258.31,258.19,1.00313722]
[1732345838479,2.83148007,258.36,258.19,1.00313722]
[1732345838689,23.776884,258.33,258.19,1.00313722]
[1732345845810,23.776884,258.33,258.2,15.56]
[1732345848690,23.776884,258.31,258.2,15.56]
[1732345848892,23.776884,258.33,258.2,15.56]
[1732345849128,23.776884,258.31,258.2,15.56]
[1732345849397,23.776884,258.33,258.2,15.56]
[1732345849692,23.776884,258.31,258.2,15.56]
[1732345849882,23.776884,258.33,258.2,15.56]
[1732345850082,23.776884,258.31,258.2,15.56]
[1732345850285,23.776884,258.33,258.2,15.56]
[1732345850492,23.776884,258.31,258.2,15.56]
[1732345850691,23.776884,258.33,258.2,15.56]
[1732345850993,21.44086048,258.42,258.21,26.6125]
[1732345851170,7.44793723,258.41,258.21,26.6125]
[1732345851492,2.86459124,258.4,258.21,26.6125]
[1732345851784,2.86459124,258.39,258.21,26.6125]
[1732345851990,2.86459124,258.38,258.21,26.6125]
[1732345852190,4.58334599,258.41,258.21,26.6125]
[1732345852367,22.86401713,258.4,258.21,26.6125]
[1732345852563,22.86401713,258.39,258.21,26.6125]
[1732345852791,2.86401713,258.38,258.21,26.6125]
[1732345853186,20.0,258.41,258.21,26.6125]
[1732345853592,23.776884,258.39,258.21,26.6125]
[1732345853894,23.776884,258.37,258.21,26.6125]
[1732345855271,23.776884,258.35,258.21,26.6125]
[1732345855574,23.776884,258.37,258.21,26.6125]
[1732345855780,23.776884,258.35,258.21,26.6125]
[1732345855983,23.776884,258.37,258.21,26.6125]
[1732345856289,2.86624736,258.36,258.21,26.6125]
[1732345856496,23.776884,258.37,258.21,26.6125]
[1732345856995,23.776884,258.35,258.21,26.6125]
[1732345860183,20.0,258.41,258.21,26.6125]
[1732345860399,20.0,258.39,258.23,20.0]
[1732345860568,23.776884,258.38,258.23,20.0]
[1732345860992,23.776884,258.4,258.23,20.0]
[1732345860993,20.0,258.39,258.23,20.0]
[1732345861193,23.776884,258.38,258.23,20.0]
[1732345861770,23.776884,258.38,258.24,15.7299]
[1732345862203,23.776884,258.38,258.25,20.0]
[1732345862384,23.776884,258.39,258.25,20.0]
[1732345865002,43.776884,258.41,258.25,20.0]
[1732345866926,23.776884,258.39,258.25,20.0]
[1732345867217,23.776884,258.37,258.25,20.0]
[1732345867424,2.87327811,258.36,258.25,20.0]
[1732345868742,18.15408679,258.42,258.26,22.2369]
[1732345868919,7.47262987,258.41,258.28,15.7299]
[1732345869127,7.47262987,258.41,258.29,20.0]
[1732345869527,2.87404641,258.4,258.29,20.0]
[1732345869714,2.87404641,258.39,258.29,20.0]
[1732345869920,13.37328766,258.48,258.29,20.0]
[1732345870143,43.776884,258.41,258.28,15.7299]
[1732345870448,2.87394148,258.4,258.28,15.7299]
[1732345870617,20.0,258.41,258.28,15.7299]
[1732345871224,7.47263,258.42,258.29,20.0]
[1732345871424,2.87365292,258.41,258.29,20.0]
[1732345871662,7.47263,258.42,258.29,20.0]
[1732345871825,2.87363314,258.41,258.29,20.0]
[1732345872022,7.47263,258.42,258.29,20.0]
[1732345872220,2.87362745,258.41,258.29,20.0]
[1732345872554,7.47263,258.42,258.29,20.0]
[1732345872723,2.8736342,258.41,258.29,20.0]
[1732345872923,7.47263,258.42,258.29,20.0]
[1732345873144,2.87378003,258.41,258.29,20.0]
[1732345873449,7.47263,258.42,258.29,20.0]
[1732345873631,2.87326833,258.41,258.29,20.0]
[1732345873829,7.47263,258.42,258.29,20.0]
[1732345874167,2.87327514,258.41,258.29,20.0]
[1732345874350,7.47263,258.42,258.29,20.0]
[1732345874721,7.47263,258.42,258.3,22.2369]
[1732345875053,23.776884,258.47,258.33,20.0]
[1732345875241,23.776884,258.45,258.33,20.0]
[1732345875417,10.34530329,258.44,258.33,20.0]
[1732345875621,7.47263,258.44,258.33,20.0]
[1732345876236,6.02364948,258.53,258.35,20.0]
[1732345876446,2.87138859,258.52,258.35,20.0]
[1732345876636,20.0,258.51,258.36,6.1195]
[1732345876942,12.11404948,258.56,258.39,15.0105]
[1732345876943,2.87138859,258.5,258.39,15.0105]
[1732345877242,4.59523076,258.57,258.4,20.0]
[1732345877551,12.047299,258.54,258.4,20.0]
[1732345877748,2.86992326,258.53,258.4,20.0]
[1732345878327,12.047299,258.54,258.33,20.0]
[1732345878533,23.776884,258.53,258.39,15.0105]
[1732345878729,12.047299,258.54,258.4,35.0105]
[1732345879176,85.43722409,258.6,258.4,35.0105]
[1732345879342,18.24420809,258.6,258.4,35.0105]
[1732345879633,2.86509918,258.59,258.4,35.0105]
[1732345879834,23.776884,258.59,258.4,35.0105]
[1732345880003,23.776884,258.59,258.42,20.0]
[1732345882203,20.0,258.56,258.42,20.0]
[1732345882398,23.776884,258.55,258.42,20.0]
[1732345885525,23.776884,258.55,258.43,16.4786]
[1732345889509,23.776884,258.53,258.43,16.4786]
[1732345889701,23.776884,258.55,258.43,16.4786]
[1732345890111,23.776884,258.53,258.43,16.4786]
[1732345890810,23.776884,258.49,258.43,16.4786]
[1732345906235,23.776884,258.47,258.43,16.4786]
[1732345906416,23.776884,258.49,258.43,16.4786]
[1732345906742,23.776884,258.47,258.43,16.4786]
[1732345906918,23.776884,258.49,258.43,16.4786]
[1732345907121,23.776884,258.47,258.43,16.4786]
[1732345907425,23.776884,258.49,258.43,16.4786]
[1732345907626,23.776884,258.47,258.43,16.4786]
[1732345908021,23.776884,258.49,258.43,16.4786]
[1732345908229,23.776884,258.47,258.43,16.4786]
[1732345908542,23.776884,258.49,258.43,16.4786]
[1732345908719,23.776884,258.47,258.43,16.4786]
[1732345908922,23.776884,258.49,258.43,16.4786]
[1732345909167,23.776884,258.47,258.43,16.4786]
[1732345909549,23.776884,258.49,258.43,16.4786]
[1732345909841,23.776884,258.47,258.43,16.4786]
[1732345910528,23.776884,258.49,258.43,16.4786]
[1732345910728,23.776884,258.47,258.43,16.4786]
[1732345910929,23.776884,258.49,258.43,16.4786]
[1732345911124,2.87068679,258.48,258.43,16.4786]
[1732345911326,23.776884,258.49,258.43,16.4786]
[1732345911535,23.776884,258.47,258.43,16.4786]
[1732345911724,23.776884,258.49,258.43,16.4786]
[1732345911919,23.776884,258.47,258.43,16.4786]
[1732345912325,23.776884,258.49,258.43,16.4786]
[1732345912631,23.776884,258.47,258.43,16.4786]
[1732345912846,23.776884,258.49,258.43,16.4786]
[1732345913043,23.776884,258.47,258.43,16.4786]
[1732345913655,23.776884,258.49,258.43,16.4786]
[1732345913878,23.776884,258.47,258.43,16.4786]
[1732345914071,23.776884,258.49,258.43,16.4786]
[1732345914382,23.776884,258.47,258.43,16.4786]
[1732345914565,4.63406837,258.49,258.35,15.1625]
[1732345914566,23.776884,258.45,258.35,15.1625]
[1732345915592,23.776884,258.43,258.35,15.1625]
[1732345915885,2.87498153,258.42,258.35,15.1625]
[1732345916064,23.776884,258.41,258.35,15.1625]
[1732345916787,23.776884,258.43,258.35,15.1625]
[1732345916976,23.776884,258.41,258.35,15.1625]
[1732345918974,23.776884,258.39,258.35,15.1625]
[1732345924678,23.776884,258.37,258.28,15.2675]
[1732345928710,39.193642,258.37,258.28,15.2675]
[1732345933198,23.776884,258.35,258.22,15.2675]
[1732345933598,23.776884,258.33,258.22,15.2675]
[1732345934701,23.776884,258.33,258.23,20.0]
[1732345936402,15.416758,258.37,258.23,20.0]
[1732345936599,2.87317343,258.36,258.23,20.0]
[1732345936985,15.416758,258.37,258.23,20.0]
[1732345937589,23.776884,258.36,258.23,20.0]
[1732345938110,15.416758,258.37,258.23,20.0]
[1732345938307,6.4409,258.48,258.24,20.0]
[1732345938493,15.414578,258.42,258.26,20.0]
[1732345938699,2.87346896,258.41,258.26,20.0]
[1732345938882,15.414578,258.42,258.26,20.0]
[1732345939092,2.87371395,258.41,258.26,20.0]
[1732345939405,15.414578,258.42,258.26,20.0]
[1732345939701,2.87377157,258.41,258.26,20.0]
[1732345939914,15.414578,258.42,258.26,20.0]
[1732345940108,2.87376122,258.41,258.26,20.0]
[1732345940303,15.414578,258.42,258.26,20.0]
[1732345940507,2.87390404,258.41,258.26,20.0]
[1732345940688,23.776884,258.41,258.26,20.0]
[1732345942013,23.776884,258.39,258.26,20.0]
[1732345942308,23.776884,258.41,258.26,20.0]
[1732345942491,23.776884,258.39,258.26,20.0]
[1732345943083,23.776884,258.41,258.26,20.0]
[1732345943685,23.776884,258.41,258.28,20.0]
[1732345944610,23.776884,258.41,258.29,15.3408]
[1732345944945,23.776884,258.41,258.3,20.0]
[1732345948276,2.87543498,258.4,258.3,20.0]
[1732345948473,15.414578,258.42,258.3,20.0]
[1732345948799,2.87536959,258.41,258.3,20.0]
[1732345949024,15.414578,258.42,258.3,20.0]
[1732345949295,2.87537035,258.41,258.3,20.0]
[1732345949809,15.414578,258.42,258.3,20.0]
[1732345950122,2.87569327,258.41,258.3,20.0]
[1732345950293,15.414578,258.42,258.3,20.0]
[1732345950504,2.87603915,258.41,258.3,20.0]
[1732345950685,15.414578,258.42,258.3,20.0]
[1732345950889,2.87605635,258.41,258.3,20.0]
[1732345951101,15.414578,258.42,258.3,20.0]
[1732345951388,2.87625049,258.41,258.3,20.0]
[1732345951590,23.776884,258.41,258.3,20.0]
[1732345957273,23.776884,258.42,258.3,20.0]
[1732345962262,15.413483,258.43,258.34,16.2321]
[1732345962462,6.02364948,258.52,258.35,20.0]
[1732345962669,15.409774,258.49,258.35,20.0]
[1732345962976,7.48502037,258.48,258.35,20.0]
[1732345963184,2.87885399,258.47,258.35,20.0]
[1732345963369,2.87815246,258.46,258.35,20.0]
[1732345963566,4.60504394,258.48,258.35,20.0]
[1732345963770,2.87812661,258.47,258.35,20.0]
[1732345963969,2.87812661,258.46,258.35,20.0]
[1732345964270,4.60504394,258.48,258.35,20.0]
[1732345964584,2.87754531,258.47,258.35,20.0]
[1732345964886,2.87754531,258.46,258.35,20.0]
[1732345965069,4.60504394,258.48,258.35,20.0]
[1732345965263,2.87714574,258.47,258.35,20.0]
[1732345965582,2.87714574,258.46,258.35,20.0]
[1732345965786,2.87714574,258.45,258.35,20.0]
[1732345965965,23.776884,258.47,258.35,20.0]
[1732345966287,23.776884,258.45,258.35,20.0]
[1732345966464,23.776884,258.48,258.35,20.0]
[1732345966665,23.776884,258.46,258.35,20.0]
[1732345966893,2.87688799,258.45,258.35,20.0]
[1732345967269,23.776884,258.48,258.35,20.0]
[1732345967471,23.776884,258.46,258.35,20.0]
[1732345967988,23.776884,258.48,258.35,20.0]
[1732345968189,23.776884,258.46,258.35,20.0]
[1732345968388,23.776884,258.48,258.35,20.0]
[1732345968591,23.776884,258.46,258.35,20.0]
[1732345968885,23.776884,258.48,258.35,20.0]
[1732345969072,23.776884,258.46,258.35,20.0]
[1732345969591,23.776884,258.48,258.35,20.0]
[1732345969769,23.776884,258.46,258.35,20.0]
[1732345970086,23.776884,258.48,258.35,20.0]
[1732345970298,23.776884,258.46,258.35,20.0]
[1732345970489,23.776884,258.48,258.35,20.0]
[1732345980499,23.776884,258.46,258.35,20.0]
[1732345980696,23.776884,258.48,258.35,20.0]
[1732345980906,23.776884,258.46,258.35,20.0]
[1732345981397,23.776884,258.48,258.35,20.0]
[1732345982482,23.776884,258.46,258.35,20.0]
[1732345983210,23.776884,258.48,258.35,20.0]
[1732345983393,23.776884,258.46,258.35,20.0]
[1732345984237,23.776884,258.46,258.34,16.2321]
[1732345984396,23.776884,258.44,258.34,16.2321]
[1732345985486,23.776884,258.44,258.35,20.0]
[1732345987388,15.409774,258.49,258.35,20.0]
[1732345987700,2.87744991,258.48,258.35,20.0]
[1732345987902,15.409774,258.49,258.35,20.0]
[1732345988115,2.87747569,258.48,258.35,20.0]
[1732345988315,15.409774,258.49,258.35,20.0]
[1732345995512,15.409774,258.49,258.37,20.0]
[1732345996295,15.409774,258.49,258.39,20.0]
[1732345996710,15.409774,258.49,258.41,20.0]
[1732346001991,6.02364948,258.62,258.44,20.0]
[1732346002201,15.403873,258.57,258.44,24.61780128]
[1732346002496,2.87709185,258.56,258.44,24.61780128]
[1732346002694,15.403873,258.57,258.44,24.61780128]
[1732346003898,15.403873,258.57,258.45,22.5521]
[1732346004122,15.403873,258.57,258.46,36.1449]
[1732346005816,43.776884,258.67,258.46,36.1449]
[1732346006121,20.0,258.64,258.46,36.1449]
[1732346006413,7.47112473,258.63,258.46,36.1449]
[1732346006734,2.87350951,258.62,258.46,36.1449]
[1732346006920,2.87350951,258.61,258.46,36.1449]
[1732346007119,2.87350951,258.6,258.46,36.1449]
[1732346007321,4.59761522,258.63,258.46,36.1449]
[1732346007494,2.87230408,258.62,258.46,36.1449]
[1732346007695,2.87230408,258.61,258.47,16.1449]
[1732346007917,2.87230408,258.61,258.46,20.0]
[1732346007918,2.87230408,258.62,258.5,20.0]
[1732346008123,4.59761522,258.66,258.5,20.0]
[1732346008419,15.402459,258.67,258.48,0.58013105]
[1732346008420,2.8705125,258.65,258.54,20.0]
[1732346008601,15.402459,258.67,258.54,20.0]
[1732346008804,2.87050328,258.66,258.54,20.0]
[1732346009101,2.87050328,258.65,258.54,20.0]
[1732346009411,15.402459,258.67,258.54,20.0]
[1732346009602,2.86926106,258.66,258.54,20.0]
[1732346009917,2.86926106,258.65,258.54,20.0]
[1732346010110,15.402459,258.67,258.54,20.0]
[1732346010417,2.86811946,258.66,258.54,20.0]
[1732346010601,15.402459,258.67,258.54,20.0]
[1732346010931,2.86812035,258.66,258.54,20.0]
[1732346011102,15.402459,258.67,258.54,20.0]
[1732346011303,2.86817092,258.66,258.54,20.0]
[1732346011523,15.402459,258.67,258.54,20.0]
[1732346011911,2.8673012,258.66,258.54,20.0]
[1732346012111,15.402459,258.67,258.54,20.0]
[1732346012312,2.86655459,258.66,258.54,20.0]
[1732346012521,15.402459,258.67,258.54,20.0]
[1732346012713,2.86654346,258.66,258.54,20.0]
[1732346012912,15.402459,258.67,258.54,20.0]
[1732346013113,2.86654431,258.66,258.54,20.0]
[1732346013312,15.402459,258.67,258.54,20.0]
[1732346013518,2.86588081,258.66,258.54,20.0]
[1732346013706,15.402459,258.67,258.54,20.0]
[1732346013907,2.86587996,258.66,258.54,20.0]
[1732346014124,15.402459,258.67,258.54,20.0]
[1732346014523,46.64220658,258.66,258.53,16.1449]
[1732346014724,23.776884,258.64,258.53,16.1449]
[1732346015222,26.64258298,258.63,258.53,16.1449]
[1732346015428,23.776884,258.61,258.53,16.1449]
[1732346016021,23.776884,258.63,258.53,16.1449]
[1732346016320,20.0,258.6,258.45,16.1449]
[1732346016523,23.776884,258.59,258.45,16.1449]
[1732346017827,23.776884,258.59,258.46,20.0]
[1732346018700,6.5456,258.64,258.46,20.0]
[1732346018908,22.86616427,258.63,258.46,20.0]
[1732346019127,26.64304827,258.62,258.46,20.0]
[1732346019321,2.8661917,258.61,258.46,20.0]
[1732346019630,23.776884,258.63,258.46,20.0]
[1732346019810,23.776884,258.61,258.46,20.0]
[1732346020011,23.776884,258.63,258.46,20.0]
[1732346020314,23.776884,258.61,258.46,20.0]
[1732346020526,23.776884,258.59,258.46,20.0]
[1732346023215,20.0,258.63,258.46,20.0]
[1732346023417,20.0,258.61,258.46,20.0]
[1732346023827,23.776884,258.63,258.46,20.0]
[1732346024024,23.776884,258.61,258.46,20.0]
[1732346024333,23.776884,258.63,258.46,20.0]
[1732346024537,23.776884,258.61,258.46,20.0]
[1732346024850,23.776884,258.63,258.46,20.0]
[1732346025164,23.776884,258.61,258.46,20.0]
[1732346025512,15.402459,258.67,258.48,43.776884]
[1732346025739,15.402459,258.67,258.5,26.1945]
[1732346025740,2.86719785,258.66,258.5,26.1945]
[1732346025917,15.402459,258.67,258.5,26.1945]
[1732346026112,2.86696882,258.66,258.5,26.1945]
[1732346026445,15.402459,258.67,258.5,26.1945]
[1732346027617,2.86674169,258.66,258.5,26.1945]
[1732346027828,15.402459,258.67,258.5,26.1945]
[1732346028012,2.86674169,258.66,258.5,26.1945]
[1732346028213,15.402459,258.67,258.5,26.1945]
[1732346030119,2.86717568,258.66,258.5,26.1945]
[1732346030327,15.402459,258.67,258.5,26.1945]
[1732346030637,2.86777322,258.66,258.5,26.1945]
[1732346030931,15.402459,258.67,258.5,26.1945]
[1732346031135,15.402459,258.67,258.53,20.0]
[1732346032511,15.402459,258.67,258.55,20.0]
[1732346032712,15.402459,258.67,258.57,20.0]
[1732346036017,5.20834974,258.81,258.59,20.0]
[1732346036218,15.394902,258.78,258.59,20.0]
[1732346036517,31.22910348,258.77,258.59,20.0]
[1732346036715,2.86623826,258.76,258.59,20.0]
[1732346036918,2.86623826,258.75,258.59,20.0]
[1732346037146,23.776884,258.77,258.59,20.0]
[1732346037338,23.776884,258.75,258.59,20.0]
[1732346037517,2.86517784,258.74,258.59,20.0]
[1732346037718,23.776884,258.73,258.59,20.0]
[1732346037924,23.776884,258.75,258.59,20.0]
[1732346038141,23.776884,258.73,258.59,20.0]
[1732346038524,23.776884,258.75,258.59,20.0]
[1732346038727,7.44951275,258.74,258.59,20.0]
[1732346038929,5.20834974,258.71,258.59,20.0]
[1732346039127,26.64190066,258.7,258.58,22.2726]
[1732346039330,23.776884,258.68,258.58,22.2726]
[1732346039739,23.776884,258.7,258.58,22.2726]
[1732346039935,23.776884,258.68,258.58,22.2726]
[1732346040824,23.776884,258.68,258.59,20.0]
[1732346041043,5.20834974,258.75,258.59,20.0]
[1732346041348,5.20834974,258.73,258.59,20.0]
[1732346041644,22.86691313,258.72,258.58,22.2726]
[1732346041847,7.45397414,258.71,258.58,22.2726]
[1732346042037,20.0,258.7,258.58,16.2001]
[1732346042239,43.776884,258.68,258.58,16.2001]
[1732346042426,2.86691313,258.67,258.58,16.2001]
[1732346042627,23.776884,258.66,258.58,16.2001]
[1732346042849,43.776884,258.68,258.58,16.2001]
[1732346043036,23.776884,258.66,258.58,16.2001]
[1732346043436,23.776884,258.67,258.58,16.2001]
[1732346043636,2.86814267,258.66,258.58,16.2001]
[1732346043951,23.776884,258.67,258.58,16.2001]
[1732346044139,23.776884,258.65,258.58,16.2001]
[1732346044456,23.776884,258.67,258.58,16.2001]
[1732346044628,23.776884,258.65,258.58,16.2001]
[1732346044949,23.776884,258.67,258.58,16.2001]
[1732346045127,2.86882532,258.66,258.58,16.2001]
[1732346045336,23.776884,258.67,258.58,16.2001]
[1732346045538,23.776884,258.65,258.58,16.2001]
[1732346046084,23.776884,258.67,258.58,16.2001]
[1732346046251,23.776884,258.65,258.58,16.2001]
[1732346046458,23.776884,258.67,258.58,16.2001]
[1732346046671,23.776884,258.65,258.58,16.2001]
[1732346046880,23.776884,258.67,258.58,16.2001]
[1732346047054,23.776884,258.65,258.58,16.2001]
[1732346047255,23.776884,258.67,258.58,16.2001]
[1732346047469,2.87070546,258.66,258.58,16.2001]
[1732346047670,23.776884,258.67,258.58,16.2001]
[1732346047847,2.87066551,258.66,258.58,16.2001]
[1732346048060,20.0,258.71,258.58,16.2001]
[1732346048263,31.24085041,258.7,258.58,16.2001]
[1732346048580,23.776884,258.7,258.58,16.2001]
[1732346048744,7.46419798,258.69,258.59,20.0]
[1732346048939,2.87084538,258.69,258.59,20.0]
[1732346049141,4.59323042,258.77,258.59,20.0]
[1732346049348,2.87034922,258.76,258.59,20.0]
[1732346049547,2.87034922,258.75,258.59,20.0]
[1732346049752,2.87034922,258.74,258.59,20.0]
[1732346049979,2.87034922,258.73,258.59,20.0]
[1732346050153,2.87034922,258.72,258.59,20.0]
[1732346050350,9.80158016,258.77,258.59,20.0]
[1732346050351,2.87034922,258.71,258.59,20.0]
[1732346050575,4.59323042,258.75,258.59,20.0]